bitfinex/quotes_ETHUSD_20241109
["timestamp","ask_amount","ask_price","bid_price","bid_amount"]
[1731115471666,0.7903,2983.6,2982.4,0.0327178]
[1731115474887,0.55,2983.5,2982.4,0.0327178]
[1731115475208,0.7903,2983.4,2982.4,0.0327178]
[1731115477000,1.22433,2983.4,2982.4,0.0327178]
[1731115477174,0.7903,2983.6,2982.4,0.09976819]
[1731115478570,0.7903,2983.6,2982.4,0.0327178]
[1731115481291,3.55,2983.7,2982.4,0.0327178]
[1731115481627,0.7967,2983.5,2982.4,0.0327178]
[1731115482475,0.70447787,2983.6,2982.4,0.0327178]
[1731115482476,0.7967,2983.3,2982.4,0.0327178]
[1731115483507,0.55,2983.0,2982.4,0.0327178]
[1731115483712,0.7967,2982.9,2982.4,0.0327178]
[1731115484713,1.23137,2982.9,2982.4,0.0327178]
[1731115484992,0.7967,2982.9,2982.4,0.0327178]
[1731115490633,0.8129,2982.8,2982.4,0.0327178]
[1731115494828,13.1929,2982.8,2982.4,0.0327178]
[1731115495031,0.8129,2982.7,2982.4,0.0327178]
[1731115515675,8.8282,2983.0,2982.4,0.0327178]
[1731115516086,9.50661341,2983.0,2982.4,0.0327178]
[1731115518171,0.8331,2982.9,2982.4,0.0327178]
[1731115524821,8.0,2983.0,2982.4,0.0327178]
[1731115525174,8.0,2983.0,2982.5,0.7809]
[1731115525900,0.8331,2982.9,2982.4,0.0327178]
[1731115526136,1.71641,2982.9,2982.4,0.0327178]
[1731115527036,0.69407839,2982.7,2982.4,0.0327178]
[1731115527248,1.52717839,2982.8,2982.4,0.0327178]
[1731115528137,0.8331,2982.8,2982.4,0.0327178]
[1731115528839,1.52717839,2982.8,2982.4,0.0327178]
[1731115529239,0.8331,2982.8,2982.4,0.0327178]
[1731115532658,1.52717839,2982.8,2982.4,0.0327178]
[1731115532977,0.69407839,2982.7,2982.4,0.0327178]
[1731115536228,0.69407839,2982.7,2982.5,0.7542]
[1731115536430,8.0,2983.0,2982.5,0.7542]
[1731115536860,8.0,2983.0,2982.6,0.06704571]
[1731115537060,8.0,2983.0,2982.7,0.7542]
[1731115540268,8.0,2983.0,2982.8,0.06704517]
[1731115540576,8.0,2983.0,2982.9,0.8069]
[1731115560510,8.0,2983.0,2982.9,1.17152662]
[1731115562308,8.0,2983.0,2982.9,1.72152662]
[1731115564058,0.87867822,2983.0,2982.9,7.26673598]
[1731115564361,0.87867822,2983.0,2982.9,1.72152662]
[1731115566354,0.791,2985.2,2983.3,0.755]
[1731115566648,0.791,2985.2,2983.8,0.755]
[1731115566951,0.791,2985.2,2983.9,0.06701375]
[1731115567751,0.791,2985.2,2984.0,0.755]
[1731115567996,0.791,2985.2,2984.2,0.755]
[1731115568116,0.791,2985.2,2984.3,0.06700354]
[1731115569256,2.83936622,2985.9,2984.3,0.06700354]
[1731115569414,12.38,2986.4,2984.4,0.755]
[1731115569415,0.791,2985.8,2984.4,0.755]
[1731115569616,0.791,2985.8,2984.5,0.755]
[1731115574352,0.791,2985.5,2984.0,0.755]
[1731115579645,0.791,2985.5,2984.1,0.06701402]
[1731115579846,0.36303662,2985.4,2984.1,0.06701402]
[1731115580025,3.59276622,2985.3,2984.0,0.755]
[1731115580218,0.7534,2985.2,2984.0,0.755]
[1731115580424,0.7534,2984.9,2984.0,0.755]
[1731115580657,0.35927662,2984.8,2984.0,0.755]
[1731115583330,0.7534,2984.9,2984.0,0.755]
[1731115583537,3.7534,2985.2,2984.1,0.06701711]
[1731115583733,0.7534,2985.2,2984.2,0.8239]
[1731115583931,0.7534,2985.2,2983.8,3.0]
[1731115583932,0.36303662,2985.4,2984.4,0.8239]
[1731115585075,0.01,2986.0,2983.8,3.0]
[1731115585076,0.7534,2985.8,2984.6,0.8239]
[1731115585229,13.1334,2986.1,2984.7,0.89089997]
[1731115586670,12.38,2986.0,2984.7,0.89089997]
[1731115586967,1.31334,2985.9,2984.7,0.89089997]
[1731115589569,13.69334,2985.9,2984.7,0.89089997]
[1731115589935,13.66784,2985.9,2984.7,0.89089997]
[1731115590270,13.66784,2985.9,2984.7,0.8239]
[1731115590631,13.1334,2986.4,2985.1,0.8239]
[1731115590972,0.7534,2986.4,2985.1,0.89088421]
[1731115591133,13.1334,2986.4,2985.1,0.89088421]
[1731115591477,1.31334,2986.3,2985.2,0.8239]
[1731115597894,1.31334,2986.3,2984.2,0.8048]
[1731115597895,2.83936622,2985.9,2984.2,0.8048]
[1731115598078,2.83936622,2985.9,2984.3,0.87180241]
[1731115598267,0.28393662,2985.8,2984.3,0.87180241]
[1731115598494,0.8045,2986.1,2984.3,0.87180241]
[1731115598808,12.38,2986.0,2984.3,0.87180241]
[1731115599165,12.38,2986.0,2984.3,0.8048]
[1731115599364,12.38,2986.0,2984.5,0.8048]
[1731115599622,1.31845,2985.9,2984.7,0.8048]
[1731115600010,1.31845,2985.9,2984.8,0.06699747]
[1731115600211,13.69845,2985.9,2984.9,0.8048]
[1731115604402,1.31845,2985.9,2984.9,0.8048]
[1731115604609,0.8045,2986.1,2984.9,0.8048]
[1731115608510,2.83936622,2985.9,2984.9,0.8048]
[1731115609489,0.8045,2986.1,2984.9,0.8048]
[1731115611076,15.21936622,2986.2,2984.9,0.8048]
[1731115611507,12.38,2986.2,2984.9,0.8048]
[1731115611674,1.369334,2986.1,2985.1,0.8048]
[1731115612308,2.83936622,2986.5,2985.1,0.8048]
[1731115614011,0.8045,2986.7,2985.1,0.8048]
[1731115616723,1.49857839,2986.7,2985.1,0.8048]
[1731115617445,0.8045,2986.7,2985.1,0.8048]
[1731115618507,3.53344461,2986.8,2985.2,0.0669842]
[1731115618707,0.35334446,2986.7,2985.3,0.8236]
[1731115618942,0.35334446,2986.7,2985.5,0.8236]
[1731115619143,0.35334446,2986.7,2985.7,0.8236]
[1731115619349,2.83936622,2987.1,2985.8,0.89057749]
[1731115619846,0.73309176,2987.2,2985.8,0.89057749]
[1731115620361,0.73309176,2987.2,2985.8,0.8236]
[1731115620581,3.65466622,2987.1,2985.8,0.8236]
[1731115621064,2.83936622,2986.8,2985.8,0.8236]
[1731115621368,2.83936622,2986.5,2985.8,0.8236]
[1731115621570,2.83936622,2986.2,2985.8,0.8236]
[1731115621723,2.83936622,2986.2,2984.2,1.339454]
[1731115621724,0.8153,2986.1,2984.4,0.8236]
[1731115621925,2.83936622,2985.9,2984.4,0.8236]
[1731115622126,2.83936622,2985.2,2984.4,0.8236]
[1731115622374,2.83936622,2984.9,2984.4,0.8236]
[1731115622728,2.83936622,2985.2,2984.4,0.8236]
[1731115624730,2.83936622,2985.5,2984.4,0.8236]
[1731115624927,0.58393662,2985.4,2984.4,0.8236]
[1731115625271,2.83936622,2985.2,2984.4,0.8236]
[1731115625766,2.83936622,2984.9,2984.4,0.8236]
[1731115627946,0.8153,2985.5,2984.4,0.8236]
[1731115627947,2.83936622,2985.2,2984.4,0.8236]
[1731115632180,2.83936622,2985.5,2984.4,0.8236]
[1731115632831,1.7173315,2985.6,2984.4,0.8236]
[1731115633031,6.12330284,2985.8,2984.4,0.8236]
[1731115635008,2.83936622,2985.5,2984.4,0.8236]
[1731115636065,3.12330284,2985.8,2984.4,0.8236]
[1731115636306,2.83936622,2985.8,2984.6,0.8236]
[1731115636477,2.83936622,2985.8,2984.7,0.89060042]
[1731115636817,0.28393662,2985.7,2984.7,0.89060042]
[1731115636976,0.28393662,2985.7,2984.7,0.8236]
[1731115638674,2.83936622,2985.4,2984.7,0.8236]
[1731115638876,2.83936622,2985.1,2984.7,0.8236]
[1731115639871,12.38,2985.4,2984.7,0.8236]
[1731115640071,2.83936622,2985.3,2984.7,0.8236]
[1731115640280,1.52193662,2985.2,2984.7,0.8236]
[1731115640888,2.83936622,2985.6,2984.7,0.8236]
[1731115641300,2.83936622,2985.9,2984.7,0.8236]
[1731115650519,0.7671,2986.0,2984.7,0.8236]
[1731115650520,2.83936622,2985.6,2984.7,0.8236]
[1731115650727,2.83936622,2985.3,2984.7,0.8236]
[1731115651019,0.28393662,2985.2,2984.7,0.8236]
[1731115651228,2.83936622,2985.0,2983.4,0.97297363]
[1731115652924,2.83936622,2985.0,2983.6,0.7857]
[1731115655384,2.83936622,2984.7,2983.6,0.7857]
[1731115657611,1.46117839,2985.0,2983.6,0.7857]
[1731115657612,2.83936622,2984.4,2983.6,0.7857]
[1731115657816,2.83936622,2984.1,2983.6,0.7857]
[1731115658628,0.35925662,2984.3,2983.6,0.7857]
[1731115658791,2.83936622,2984.4,2983.6,0.7857]
[1731115659528,5.83936622,2984.7,2983.6,0.7857]
[1731115661806,3.0,2984.9,2983.6,0.7857]
[1731115662002,15.21936622,2985.0,2983.6,0.7857]
[1731115662205,4.36130284,2985.0,2983.7,0.06702495]
[1731115662516,4.36130284,2985.0,2983.8,0.7648]
[1731115667028,2.83936622,2985.0,2983.8,0.7648]
[1731115670606,2.83936622,2985.4,2984.0,0.7648]
[1731115670951,2.83936622,2985.4,2983.6,3.0]
[1731115670952,2.83936622,2985.4,2984.2,0.7648]
[1731115674282,0.69407839,2985.8,2984.3,0.7648]
[1731115674433,2.83936622,2985.9,2984.5,0.7648]
[1731115674624,2.83936622,2985.9,2984.7,0.7648]
[1731115674962,12.38,2986.3,2984.9,0.7648]
[1731115675182,12.38,2986.3,2984.4,0.55]
[1731115675183,2.83936622,2986.3,2985.1,0.7648]
[1731115675317,2.83936622,2986.3,2985.3,0.7648]
[1731115675518,3.12330284,2986.3,2985.3,0.7648]
[1731115676541,2.83936622,2986.3,2985.3,0.7648]
[1731115676849,2.83936622,2986.6,2985.5,0.7648]
[1731115678567,2.83936622,2986.0,2985.5,0.7648]
[1731115678917,2.83936622,2985.7,2985.5,0.7648]
[1731115682362,2.83936622,2986.0,2985.5,0.7648]
[1731115682566,4.43995284,2986.0,2985.5,0.7648]
[1731115682765,12.38,2986.1,2985.5,0.7648]
[1731115683127,2.83936622,2986.6,2985.5,0.7648]
[1731115683652,2.83936622,2986.0,2985.5,0.7648]
[1731115684162,3.62586622,2986.0,2985.5,0.7648]
[1731115684465,2.83936622,2985.7,2984.3,0.7798]
[1731115684761,2.83936622,2985.7,2984.5,0.7798]
[1731115685169,2.83936622,2985.4,2984.5,0.7798]
[1731115685333,2.83936622,2985.1,2984.5,0.7798]
[1731115685530,2.83936622,2984.8,2984.5,0.7798]
[1731115686148,2.83936622,2985.1,2984.5,0.7798]
[1731115686553,2.83936622,2984.8,2984.2,0.7798]
[1731115686752,0.28393662,2984.7,2984.2,0.7798]
[1731115689342,2.83936622,2984.5,2983.2,0.7798]
[1731115690783,0.69407839,2984.8,2983.2,0.7798]
[1731115690784,2.83936622,2984.2,2983.2,0.7798]
[1731115692588,2.83936622,2983.9,2983.2,0.7798]
[1731115694352,0.7865,2983.8,2983.2,0.7798]
[1731115694552,2.83936622,2983.6,2983.2,0.7798]
[1731115694767,3.20195284,2983.6,2983.2,0.7798]
[1731115695402,2.83936622,2983.9,2983.2,0.7798]
[1731115699818,0.793,2983.8,2983.2,0.7798]
[1731115700118,2.83936622,2983.3,2982.9,0.7785]
[1731115701324,2.83936622,2983.3,2982.5,0.7785]
[1731115701497,0.28393662,2983.2,2982.5,0.7785]
[1731115706425,2.83936622,2983.0,2982.5,0.7785]
[1731115708586,0.28393662,2983.2,2982.5,0.7785]
[1731115711532,16.04206622,2983.6,2982.5,0.7785]
[1731115711842,15.21936622,2983.6,2982.5,0.7785]
[1731115713511,2.83936622,2983.6,2982.5,0.7785]
[1731115714714,2.83936622,2983.9,2982.5,0.7785]
[1731115714909,2.83936622,2983.6,2982.5,0.7785]
[1731115717846,2.83936622,2984.2,2982.6,0.85435097]
[1731115718012,2.83936622,2984.2,2982.6,0.7873]
[1731115719511,2.83936622,2984.2,2982.7,0.85433974]
[1731115720343,2.83936622,2984.2,2982.9,0.7873]
[1731115720650,2.83936622,2984.5,2983.0,0.85433459]
[1731115720949,3.20222284,2984.5,2983.0,0.85433459]
[1731115722147,3.20222284,2984.5,2983.0,0.85433123]
[1731115722654,2.83936622,2984.5,2983.1,0.55]
[1731115722820,2.83936622,2984.5,2983.2,0.7873]
[1731115723155,2.83936622,2984.5,2983.3,0.85432725]
[1731115723343,2.83936622,2984.8,2983.3,0.85432725]
[1731115723528,3.12330284,2984.8,2983.3,0.7873]
[1731115723729,3.0,2985.1,2983.5,0.7873]
[1731115723914,3.0,2985.1,2983.4,3.0]
[1731115723915,0.7892,2985.4,2983.7,0.7873]
[1731115724121,0.7892,2985.4,2983.4,3.0]
[1731115724122,2.83936622,2985.3,2983.9,0.7873]
[1731115724622,2.83936622,2985.3,2984.0,0.06701775]
[1731115724847,0.36285662,2985.2,2984.0,0.7873]
[1731115725228,2.83936622,2985.6,2984.1,0.85431628]
[1731115726152,2.83936622,2985.9,2984.3,0.7873]
[1731115726320,0.28393662,2985.8,2984.3,0.7873]
[1731115726524,2.83936622,2985.6,2984.3,0.7873]
[1731115726965,2.83936622,2985.3,2984.3,0.7873]
[1731115727323,2.83936622,2984.9,2984.3,0.7873]
[1731115727570,0.28393662,2984.8,2984.3,0.7873]
[1731115727731,2.83936622,2985.2,2984.3,0.7873]
[1731115729167,2.83936622,2984.9,2984.3,0.7873]
[1731115729945,2.83936622,2985.2,2984.3,0.7873]
[1731115731159,2.83936622,2984.9,2984.3,0.7873]
[1731115738249,2.83936622,2984.5,2983.2,0.8023]
[1731115738450,0.28393662,2984.4,2983.2,0.8023]
[1731115738683,2.83936622,2984.2,2983.2,0.8023]
[1731115738877,0.28393662,2984.4,2983.2,0.8023]
[1731115738878,2.83936622,2983.9,2983.2,0.8023]
[1731115739354,2.83936622,2984.2,2983.2,0.8023]
[1731115739854,12.38,2984.3,2983.2,0.8023]
[1731115740058,2.83936622,2984.2,2983.2,0.8023]
[1731115742869,2.83936622,2983.9,2983.2,0.8023]
[1731115743190,0.28493662,2983.8,2983.2,0.8023]
[1731115743782,13.1946,2984.1,2983.2,0.8023]
[1731115743783,12.38,2984.1,2983.2,0.8023]
[1731115744095,2.83936622,2984.2,2983.2,0.8023]
[1731115745691,2.83936622,2983.9,2983.2,0.8023]
[1731115746658,3.0,2984.1,2983.2,0.8023]
[1731115747711,2.83936622,2984.2,2983.2,0.8023]
[1731115748007,3.12330284,2984.2,2983.2,0.8023]
[1731115751015,2.83936622,2983.9,2983.2,0.8023]
[1731115752630,3.0,2983.8,2983.2,0.8023]
[1731115754118,2.83936622,2983.6,2983.2,0.8023]
[1731115754299,2.83936622,2983.6,2982.5,0.8023]
[1731115754489,0.28393662,2983.5,2982.5,0.8023]
[1731115757219,2.83936622,2983.3,2982.4,0.0327178]
[1731115757391,2.83936622,2983.0,2982.5,0.8023]
[1731115757590,0.28393662,2982.9,2982.5,0.8023]
[1731115758023,1.04993662,2982.9,2982.4,0.0327178]
[1731115758331,2.83936622,2982.7,2982.4,0.0327178]
[1731115763397,3.0,2982.6,2982.4,0.0327178]
[1731115763613,0.766,2982.5,2982.4,0.0327178]
[1731115763795,0.66153662,2982.5,2982.4,0.0327178]
[1731115763991,3.0,2982.6,2982.4,0.0327178]
[1731115766489,0.56,2982.4,2980.8,0.7581]
[1731115766696,2.83936622,2981.9,2980.8,0.7581]
[1731115772034,3.60536622,2981.9,2980.8,0.7581]
[1731115772220,0.36053662,2981.8,2980.8,0.7581]
[1731115774065,0.766,2980.7,2980.1,3.0]
[1731115774213,2.83936622,2980.4,2980.1,3.0]
[1731115774413,2.83936622,2980.7,2980.1,3.0]
[1731115774621,0.58393662,2980.6,2980.2,0.7581]
[1731115777639,0.8113,2980.3,2980.1,3.0]
[1731115780202,0.55,2980.2,2980.1,3.0]
[1731115784652,0.8113,2980.3,2980.1,3.0]
[1731115784811,0.36506662,2980.2,2980.1,3.0]
[1731115786761,0.3565555,2980.2,2980.1,3.0]
[1731115787546,2.83936622,2980.4,2980.1,3.8248]
[1731115790444,0.58393662,2980.6,2980.1,3.8248]
[1731115790777,3.58393662,2980.6,2980.1,3.8248]
[1731115791958,2.83936622,2980.4,2980.1,3.8248]
[1731115792171,2.83936622,2980.4,2980.1,3.0]
[1731115792391,0.36169662,2980.3,2980.1,3.0]
[1731115799915,3.58393662,2980.6,2980.2,0.8001]
[1731115800119,0.58393662,2980.6,2980.2,0.8001]
[1731115800302,2.83936622,2980.7,2980.2,0.8001]
[1731115800702,2.83936622,2980.4,2980.2,0.8001]
[1731115800904,0.55,2981.0,2980.2,0.8001]
[1731115801073,2.83936622,2980.4,2980.2,0.8001]
[1731115801284,3.12330284,2980.4,2980.1,3.0]
[1731115802879,3.0,2980.3,2980.1,3.0]
[1731115806254,15.38,2980.3,2980.1,3.0]
[1731115810684,15.38,2980.3,2980.1,3.8001]
[1731115811929,3.0,2980.3,2980.1,3.8001]
[1731115812162,3.61233028,2980.3,2980.1,3.8001]
[1731115815874,3.61233028,2980.3,2980.1,0.8001]
[1731115816777,3.0,2980.1,2979.3,0.8001]
[1731115816995,2.83936622,2979.8,2979.3,0.8001]
[1731115817335,2.83936622,2979.5,2979.3,0.8001]
[1731115817776,2.83936622,2979.5,2977.7,2.11503386]
[1731115817777,6.63776622,2979.5,2977.7,2.11503386]
[1731115817980,5.83936622,2979.5,2978.9,0.8254]
[1731115819063,6.53747002,2979.5,2978.9,0.8254]
[1731115819260,5.83936622,2979.5,2978.9,0.8254]
[1731115819469,8.60551668,2979.5,2978.9,0.8254]
[1731115819660,7.90563917,2979.5,2978.9,0.8254]
[1731115820152,8.95279487,2979.5,2978.9,0.8254]
[1731115820356,8.60578777,2979.5,2978.9,0.8254]
[1731115820567,7.90563917,2979.5,2978.9,0.8254]
[1731115822086,5.06627295,2979.5,2978.9,0.8254]
[1731115822245,3.0,2979.5,2978.9,0.8254]
[1731115822642,12.38,2979.6,2979.4,0.9636652]
[1731115826885,4.33791482,2979.8,2979.4,0.1382652]
[1731115827080,0.7001486,2979.7,2979.4,0.1382652]
[1731115827294,0.53850705,2979.6,2979.4,0.1382652]
[1731115828261,2.83936622,2979.5,2979.4,0.1382652]
[1731115828501,3.53951482,2979.5,2979.4,0.1382652]
[1731115828998,1.23865565,2979.6,2979.4,0.1382652]
[1731115830810,3.53951482,2979.5,2979.4,0.1382652]
[1731115830983,7.69903968,2979.5,2979.4,0.1382652]
[1731115831687,7.45028398,2979.5,2979.4,0.1382652]
[1731115832278,8.49861573,2979.5,2979.4,0.1382652]
[1731115832522,9.39649158,2979.5,2979.4,0.1382652]
[1731115832708,9.39649158,2979.5,2978.2,0.8254]
[1731115832709,0.8084,2979.3,2978.2,0.8254]
[1731115832908,2.83936622,2978.8,2978.2,0.8254]
[1731115833315,0.7984,2978.7,2978.2,0.8254]
[1731115833624,2.83936622,2978.8,2978.2,0.8254]
[1731115833625,12.38,2978.8,2978.2,0.8254]
[1731115835181,2.83936622,2979.1,2978.2,0.8254]
[1731115835385,0.28393662,2979.0,2978.2,0.8254]
[1731115835629,2.83936622,2978.8,2978.2,0.8254]
[1731115837402,2.83936622,2978.5,2977.4,0.8254]
[1731115837610,3.0,2978.7,2977.6,0.8254]
[1731115837781,3.65381846,2978.7,2977.6,0.8254]
[1731115837983,2.83936622,2978.5,2977.6,0.8254]
[1731115838235,3.65381846,2978.7,2977.6,0.8254]
[1731115838236,2.83936622,2977.8,2977.6,0.8254]
[1731115838530,2.83936622,2978.2,2977.6,0.8254]
[1731115840291,3.0,2977.8,2977.2,3.8111]
[1731115840489,2.83936622,2977.9,2977.2,3.8111]
[1731115844541,3.7573,2977.8,2977.2,3.8111]
[1731115844723,2.83936622,2977.3,2977.2,3.0]
[1731115844928,3.59666622,2977.3,2977.2,3.0]
[1731115845226,6.95633284,2977.3,2977.2,2.95]
[1731115848309,0.8165,2977.0,2976.5,0.1382652]
[1731115848511,5.83936622,2976.6,2976.5,0.1382652]
[1731115850551,0.8165,2977.0,2976.5,0.1382652]
[1731115850748,3.65586622,2977.0,2976.5,0.1382652]
[1731115850952,0.36558662,2976.9,2976.5,0.1382652]
[1731115851113,2.83936622,2976.7,2976.5,0.1382652]
[1731115852155,2.83936622,2976.8,2976.5,0.1382652]
[1731115852718,3.0,2977.1,2976.5,0.1382652]
[1731115853467,15.38,2977.1,2976.5,0.1382652]
[1731115853833,15.38,2977.1,2976.6,0.809]
[1731115854680,0.35966662,2977.3,2976.6,0.809]
[1731115854827,0.35966662,2977.3,2976.5,0.1382652]
[1731115854828,2.83936622,2976.9,2976.5,0.0182652]
[1731115855026,2.83936622,2976.6,2976.5,0.0182652]
[1731115856723,2.83936622,2976.9,2976.5,0.0182652]
[1731115856974,3.0,2977.1,2976.5,0.0182652]
[1731115857189,0.66558662,2977.0,2976.6,0.809]
[1731115860620,2.83936622,2977.5,2976.6,0.809]
[1731115861243,2.83936622,2977.2,2976.6,0.809]
[1731115862939,2.83936622,2977.5,2976.6,0.809]
[1731115863137,0.38165,2977.5,2976.6,0.809]
[1731115863535,3.38165,2977.5,2976.6,0.809]
[1731115863938,2.83936622,2977.6,2976.6,0.809]
[1731115864147,2.83936622,2977.6,2976.6,0.8056]
[1731115864647,0.28393662,2978.1,2976.6,0.8056]
[1731115864648,2.83936622,2977.8,2976.6,0.8056]
[1731115865262,2.83936622,2978.1,2976.8,0.8056]
[1731115865551,2.83936622,2977.8,2976.9,0.8056]
[1731115865726,2.83936622,2978.4,2976.9,0.8056]
[1731115865727,2.83936622,2977.5,2976.9,0.8056]
[1731115866952,2.83936622,2977.2,2976.9,0.8056]
[1731115867338,2.78936622,2977.2,2976.9,0.8056]
[1731115868725,3.0,2977.4,2976.9,0.8056]
[1731115868929,0.28393662,2977.7,2976.9,0.8056]
[1731115869112,3.0,2977.7,2976.9,0.8056]
[1731115869313,2.83936622,2977.8,2976.9,0.8056]
[1731115870163,0.7518,2978.2,2976.9,0.8056]
[1731115870164,2.83936622,2977.2,2976.9,0.8056]
[1731115871019,3.0,2977.4,2976.9,0.8056]
[1731115871237,3.37518,2977.4,2976.9,0.8056]
[1731115874131,3.0,2977.4,2976.9,0.8056]
[1731115874329,3.0,2977.7,2976.9,0.8056]
[1731115875319,2.83936622,2977.8,2976.9,0.8056]
[1731115876021,2.83936622,2978.1,2976.9,0.8056]
[1731115876227,0.35911662,2978.0,2976.9,0.8056]
[1731115877949,2.83936622,2977.8,2976.9,0.8056]
[1731115878268,2.83936622,2977.5,2976.9,0.8056]
[1731115878863,2.83936622,2977.2,2976.9,0.8056]
[1731115880376,2.83936622,2977.2,2976.5,0.0182652]
[1731115880377,3.0,2977.1,2976.5,0.0182652]
[1731115880526,3.60856622,2976.8,2976.5,0.0182652]
[1731115880959,3.0,2976.7,2976.5,0.0182652]
[1731115882883,3.58393662,2977.0,2976.5,0.0182652]
[1731115883200,3.0,2976.7,2976.5,0.0182652]
[1731115883332,3.58393662,2977.0,2976.5,0.7734652]
[1731115884658,0.58393662,2977.0,2976.5,0.7734652]
[1731115884865,2.83936622,2977.4,2976.5,0.7734652]
[1731115885641,4.30738455,2977.7,2976.5,0.7734652]
[1731115885840,3.53818455,2977.7,2976.5,0.7734652]
[1731115886178,0.35381846,2977.6,2976.5,0.7734652]
[1731115886876,3.35381846,2977.6,2976.5,0.7734652]
[1731115887372,0.69881833,2977.9,2976.5,0.7734652]
[1731115887571,0.69881833,2977.9,2976.7,0.7552]
[1731115887738,1.05793495,2978.0,2976.7,0.7552]
[1731115887934,2.83936622,2977.8,2976.7,0.7552]
[1731115888149,3.22909634,2977.8,2976.7,0.7552]
[1731115888535,3.0,2977.7,2976.7,0.7552]
[1731115888938,0.38973012,2977.8,2976.7,0.7552]
[1731115889574,0.35911662,2978.0,2976.7,0.7552]
[1731115889786,0.35911662,2978.0,2976.8,0.06717938]
[1731115889942,0.69881833,2978.3,2976.9,0.7552]
[1731115890141,0.01,2978.1,2975.8,0.55]
[1731115890343,0.01,2978.1,2976.5,2.83936622]
[1731115890344,0.01,2977.9,2976.5,2.83936622]
[1731115890574,0.07717945,2977.9,2976.6,0.28393662]
[1731115890777,2.83936622,2977.8,2976.3,0.55]
[1731115890955,0.06717945,2977.7,2976.3,0.55]
[1731115891369,0.07717945,2977.7,2975.9,2.83936622]
[1731115891572,0.01,2977.5,2976.0,0.55]
[1731115891794,0.31871795,2977.5,2976.2,0.55]
[1731115891993,0.06717945,2977.4,2976.2,0.55]
[1731115892149,0.06717945,2977.4,2976.3,0.06718354]
[1731115892347,0.06717945,2977.4,2976.2,0.55]
[1731115893270,0.06717945,2977.4,2976.3,0.82238355]
[1731115893448,0.06717945,2977.6,2976.3,0.82238355]
[1731115894440,0.07717945,2977.8,2976.5,0.7552]
[1731115895396,0.01,2977.8,2976.5,0.7552]
[1731115895985,0.01,2977.8,2976.2,3.38936622]
[1731115895986,0.01,2977.8,2976.7,0.7552]
[1731115897149,0.01,2978.0,2976.9,0.7552]
[1731115897455,0.01,2978.0,2976.8,0.55]
[1731115897762,0.07717945,2978.0,2976.9,0.8048]
[1731115898956,0.29265457,2977.9,2976.9,0.8048]
[1731115899153,0.06717945,2977.8,2976.9,0.8048]
[1731115900599,0.85327945,2977.8,2976.9,0.8048]
[1731115900755,0.06717945,2977.8,2977.1,0.8048]
[1731115900956,0.70881833,2978.6,2977.3,0.8048]
[1731115901182,0.06717945,2978.5,2977.3,0.8048]
[1731115901767,0.07717945,2978.5,2977.3,0.8048]
[1731115902176,0.06717945,2978.5,2977.3,0.8048]
[1731115902502,0.8061,2978.7,2977.3,0.8048]
[1731115902503,0.06717945,2978.6,2977.3,0.8048]
[1731115902702,0.06717945,2978.6,2977.1,2.83936622]
[1731115902703,0.06717945,2979.2,2978.1,2.83936622]
[1731115902858,0.06717945,2979.2,2978.3,0.8048]
[1731115903060,0.06717945,2979.6,2978.3,0.8048]
[1731115903254,0.06717945,2979.6,2978.5,0.8048]
[1731115903809,0.06717945,2979.9,2978.8,0.8048]
[1731115904654,0.06717945,2980.1,2978.8,0.8048]
[1731115904903,0.07717945,2980.1,2978.8,0.8048]
[1731115905813,0.06717945,2980.1,2978.8,0.8048]
[1731115905968,0.06717945,2980.2,2978.9,0.8048]
[1731115906363,0.01,2980.5,2979.4,0.8048]
[1731115906364,0.06717945,2980.5,2979.4,0.8048]
[1731115906564,0.06717945,2980.5,2979.3,2.83936622]
[1731115906565,0.06717945,2980.5,2979.6,0.8048]
[1731115906959,0.06717945,2980.5,2979.7,0.06711572]
[1731115907164,0.06717945,2980.8,2979.8,0.8048]
[1731115907362,0.06717945,2980.8,2979.9,0.06710964]
[1731115907582,0.06717945,2980.8,2979.9,0.87190964]
[1731115907998,0.02,2981.4,2979.9,0.87190964]
[1731115907999,0.08717945,2981.4,2979.9,0.87190964]
[1731115908205,0.28593662,2981.3,2980.0,0.7563]
[1731115908411,0.06717945,2981.2,2980.0,0.7563]
[1731115909106,0.06717945,2981.2,2980.1,0.06710176]
[1731115909405,0.01,2981.4,2980.2,0.7563]
[1731115909406,0.07717945,2981.4,2980.2,0.7563]
[1731115909807,0.01,2980.9,2980.2,0.7563]
[1731115909993,0.01,2980.6,2979.1,0.7563]
[1731115910178,0.01,2980.4,2979.2,0.7563]
[1731115910383,0.07717945,2980.4,2979.2,0.7563]
[1731115911783,0.06717945,2980.4,2979.2,0.7563]
[1731115912106,0.06717945,2980.6,2978.9,0.7563]
[1731115912310,0.30671795,2980.5,2979.1,0.7563]
[1731115912605,0.796,2980.3,2979.1,0.7563]
[1731115912773,0.06717945,2980.2,2979.1,0.7563]
[1731115913318,0.06717945,2980.2,2979.2,0.06712588]
[1731115913518,0.06717945,2980.2,2979.1,0.7563]
[1731115914609,0.06717945,2980.2,2979.2,0.0671191]
[1731115914818,0.07717945,2980.4,2979.1,0.7563]
[1731115915184,0.06717945,2980.4,2979.2,0.06711907]
[1731115915394,0.06717945,2980.4,2979.2,0.55]
[1731115915788,3.796,2980.7,2979.2,0.55]
[1731115915789,0.06717945,2980.6,2979.3,0.7563]
[1731115916081,0.38631794,2980.5,2979.3,0.7563]
[1731115916294,0.06717945,2980.4,2979.5,0.7563]
[1731115916471,0.01,2980.8,2979.5,0.7563]
[1731115916669,0.07717945,2980.8,2979.5,0.7563]
[1731115917218,0.07717945,2980.8,2979.2,0.55]
[1731115917219,0.07717945,2980.8,2979.7,0.7563]
[1731115917896,0.06717945,2980.8,2979.7,0.7563]
[1731115918101,0.06717945,2980.9,2979.8,0.06710573]
[1731115918273,0.06717945,2980.9,2979.9,0.8156]
[1731115918477,0.06717945,2981.3,2980.1,0.8156]
[1731115918722,0.06717945,2981.3,2980.2,0.06710046]
[1731115919317,0.06717945,2981.3,2980.1,0.8156]